[Event "German Bundesliga 2024-25"]
[Site "Germany"]
[Date "2024.12.01"]
[Round "4.4"]
[White "Kadric, Denis"]
[Black "Dragnev, Valentin"]
[Result "1/2-1/2"]
[Annotator "TA"]
[ECO "C54"]
[WhiteElo "2562"]
[BlackElo "2566"]
[PlyCount "52"]
[EventDate "2024.09.27"]
[EventType "team-tourn"]
[EventCountry "GER"]
[SourceTitle "playchess.com"]
[Source "ChessBase"]
[SourceQuality "1"]
[WhiteTeam "Kirchweyhe"]
[BlackTeam "Bayern Muenchen"]
[TimeControl "40/5400+30:1800+30"]

{[%evp 13,52,16,37,20,16,-2,13,41,41,31,39,33,44,35,33,39,42,56,38,42,44,12,11,0,0,0,0,0,8,0,30,8,40,16,16,33,49,32,46,26,56]} 1. e4 {[%emt 0:00:03]} e5 {[%emt 0:00:26]} 2. Nf3 {[%emt 0:00:06]} Nc6 {[%emt 0:00:06]} 3. Bc4 {[%emt 0:00:05]} Bc5 {[%emt 0:00:07]} 4. c3 {[%emt 0:00:09]} Nf6 {[%emt 0:00:10]} 5. d3 {[%emt 0:00:02]} a6 {[%emt 0:00:20]} 6. Bg5 {[%emt 0:01:28]} h6 {[%emt 0:00:21]} 7. Bh4 {[%emt 0:00:03]} d6 {[%emt 0:00:16]} 8. Nbd2 {[%emt 0:00:25]} Ba7 {[%emt 0:00:24]} 9. a4 {[%emt 0:00:13]} Qe7 {[%emt 0:00:32]} 10. O-O {[%emt 0:00:09] The position is equal.} Be6 {[%emt 0:01:18]} 11. b4 {[%emt 0:00:39]} O-O {[%emt 0:00:31]} 12. Re1 {[%emt 0:02:03]} Bxc4 {[%emt 0:00:57]} 13. Nxc4 {[%emt 0:00:34]} Qe6 {[%emt 0:00:08]} 14. b5 {[%emt 0:08:02]} axb5 {[%emt 0:02:56]} 15. axb5 {[%emt 0:00:07]} Ne7 {[%emt 0:00:10]} 16. Ra4 {[%emt 0:06:38] Strongly threatening Qa1.} Bb6 $1 {[%emt 0:07:05]} 17. d4 {[%emt 0:05:00][%cal Rd4e5]} Ng6 {[%emt 0:05:03]} 18. Bg3 {[%emt 0:05:15]} Nd7 {[%emt 0:06:30]} 19. Qa1 {[%emt 0:09:59]} Rxa4 {[%emt 0:10:14]} 20. Qxa4 {[%emt 0:00:07]} f6 {[%emt 0:00:22]} 21. h3 {[%emt 0:08:46]} Kh7 {[%emt 0:11:52]} 22. Ra1 {[%emt 0:05:44]} Re8 {[%emt 0:09:06]} 23. Qb4 {[%emt 0:05:26]} exd4 {[%emt 0:07:49]} 24. cxd4 {[%emt 0:02:53]} f5 {[%emt 0:01:59]} (24... Qxe4 $2 {is the wrong capture.} 25. Re1 f5 26. Rxe4 $18) 25. exf5 {[%emt 0:03:26]} Qxf5 {[%emt 0:00:03]} 26. Rc1 {[%emt 0:03:25]} Kh8 {[%emt 0:10:22] Weighted Error Value: White=0.10 (very precise) /Black=0.06 (flawless) .  Inaccurate:     	White=1     	Black=3      OK:         	White=6     	Black=9      Strong:       	---       	Black=1} 1/2-1/2

[Event "German Bundesliga 2024-25"]
[Site "Germany"]
[Date "2024.12.01"]
[Round "4.4"]
[White "Kempinski, Robert"]
[Black "Andersen, Mads"]
[Result "1/2-1/2"]
[Annotator "TA"]
[ECO "D40"]
[WhiteElo "2560"]
[BlackElo "2595"]
[PlyCount "41"]
[EventDate "2024.09.27"]
[EventType "team-tourn"]
[EventCountry "GER"]
[SourceTitle "playchess.com"]
[Source "ChessBase"]
[SourceQuality "1"]
[WhiteTeam "Hamburg"]
[BlackTeam "SG Solingen"]
[TimeControl "40/5400+30:1800+30"]

{[%evp 18,41,22,15,0,-30,-4,-13,-12,-13,0,0,6,3,6,0,0,0,0,0,0,0,0,0,7,0]} 1. d4 {[%emt 0:00:04]} d5 {[%emt 0:00:08]} 2. c4 {[%emt 0:00:26]} e6 {[%emt 0:00:14]} 3. Nc3 {[%emt 0:03:18]} c5 {[%emt 0:00:33]} 4. e3 {[%emt 0:03:47]} Nf6 {[%emt 0:00:33]} 5. Nf3 {[%emt 0:01:22]} Nc6 {[%emt 0:03:04]} 6. a3 {[%emt 0:01:27]} a6 {[%emt 0:01:26]} 7. dxc5 {[%emt 0:01:11]} Bxc5 {[%emt 0:00:15]} 8. b4 {[%emt 0:00:32]} Bd6 {[%emt 0:00:08]} 9. Bb2 {[%emt 0:02:58]} O-O {[%emt 0:00:54]} 10. Rc1 {[%emt 0:09:03]} Qe7 {[%emt 0:05:53]} 11. Qb3 {[%emt 0:07:53]} Rd8 {[%emt 0:05:47]} 12. Be2 {[%emt 0:06:35][%cal Rc4d5] The position is equal.} dxc4 {[%emt 0:06:30]} 13. Qxc4 {[%emt 0:02:59]} Ne5 {[%emt 0:17:10]} 14. Qb3 {[%emt 0:03:59]} Bd7 {[%emt 0:07:31]} 15. O-O {[%emt 0:07:05]} Rac8 {[%emt 0:12:08]} 16. Rfd1 {[%emt 0:15:45]} Nxf3+ {[%emt 0:06:08]} 17. Bxf3 {[%emt 0:00:39]} Bc6 {[%emt 0:00:09]} 18. Bxc6 {[%emt 0:02:28]} Rxc6 {[%emt 0:00:09]} 19. Ne2 {[%emt 0:04:47]} Rxc1 {[%emt 0:07:40]} 20. Rxc1 {[%emt 0:01:51]} Bb8 {[%emt 0:03:28]} 21. Qc3 {[%emt 0:05:39] An uneventful encounter.   Weighted Error Value: White=0.05 (flawless) /Black=0.06 (flawless) .  Inaccurate:     	White=1     	Black=1      OK:         	White=4     	Black=3} 1/2-1/2

[Event "German Bundesliga 2024-25"]
[Site "Germany"]
[Date "2024.12.01"]
[Round "4.4"]
[White "Janik, Igor"]
[Black "Ferreira, Jorge Viterbo"]
[Result "1/2-1/2"]
[Annotator "TA"]
[ECO "E06"]
[WhiteElo "2513"]
[BlackElo "2523"]
[PlyCount "49"]
[EventDate "2024.09.27"]
[EventType "team-tourn"]
[EventCountry "GER"]
[SourceTitle "playchess.com"]
[Source "ChessBase"]
[SourceQuality "1"]
[WhiteTeam "St. Pauli"]
[BlackTeam "Heimbach-Weis-Neuwied"]
[TimeControl "40/5400+30:1800+30"]

{[%evp 12,49,25,14,25,3,21,7,23,20,32,31,32,39,38,31,45,37,63,33,31,32,33,32,31,31,35,38,49,51,64,0,46,39,35,20,26,31,56,24]} 1. Nf3 {[%emt 0:00:03]} d5 {[%emt 0:00:08]} 2. g3 {[%emt 0:00:06]} Nf6 {[%emt 0:00:08]} 3. Bg2 {[%emt 0:00:05]} e6 {[%emt 0:00:11]} 4. c4 {[%emt 0:00:32]} Be7 {[%emt 0:00:12]} 5. O-O {[%emt 0:00:10]} O-O {[%emt 0:00:11]} 6. d4 {[%emt 0:00:08]} c6 {[%emt 0:00:22]} 7. Nc3 {[%emt 0:00:13]} a5 {[%emt 0:00:34]} 8. Bg5 {[%emt 0:04:49]} Nbd7 {[%emt 0:05:53]} 9. e3 {[%emt 0:01:11]} dxc4 {[%emt 0:18:24] The position is equal.} 10. Nd2 {[%emt 0:04:20]} Nb6 {[%emt 0:14:06][%cal Oe6e5]} 11. Qe2 {[%emt 0:07:58]} Nfd5 {[%emt 0:08:15] [#] Hoping for ...Nxc3.} 12. Bxe7 {[%emt 0:00:40]} Qxe7 {[%emt 0:00:06]} 13. Nxc4 {[%emt 0:06:29]} Nxc4 {[%emt 0:01:11]} 14. Qxc4 {[%emt 0:00:20]} Qb4 {[%emt 0:01:03]} 15. Qd3 {[%emt 0:04:09]} (15. Qxb4 {simplifies} axb4 16. Ne4 b6 17. Rfc1) 15... b6 {[%emt 0:00:37]} 16. Qc2 {[%emt 0:03:05]} Ba6 {[%emt 0:03:09]} 17. Rfc1 {[%emt 0:00:29]} Rac8 {[%emt 0:03:28]} 18. a3 {[%emt 0:02:00]} Qe7 {[%emt 0:00:46]} 19. Qb3 {[%emt 0:00:52][%cal Rc3d5] Nxd5 would now be deadly.} Qa7 {[%emt 0:01:51]} 20. Na4 {[%emt 0:09:34]} Bb5 {[%emt 0:01:54]} 21. Nc3 {[%emt 0:03:30]} (21. Bxd5 $5 Bxa4 22. Qxa4 cxd5 23. Kg2 $11) 21... Ba6 {[%emt 0:00:10]} 22. Rc2 {[%emt 0:01:08]} Nxc3 {[%emt 0:09:08]} 23. Rxc3 {[%emt 0:00:34]} c5 {[%emt 0:00:12]} 24. dxc5 {[%emt 0:02:04]} bxc5 {[%emt 0:00:55]} 25. Rd1 {[%emt 0:06:57] Weighted Error Value: White=0.10 (very precise) /Black=0.05 (flawless) .  Inaccurate:     	White=2     	Black=1      OK:         	White=6     	Black=7      Best:        	White=1     	---} 1/2-1/2

[Event "German Bundesliga 2024-25"]
[Site "Germany"]
[Date "2024.12.01"]
[Round "4.4"]
[White "Razafindratsima, Timothe"]
[Black "Gledura, Benjamin"]
[Result "1/2-1/2"]
[Annotator "TA"]
[ECO "C91"]
[WhiteElo "2465"]
[BlackElo "2652"]
[PlyCount "68"]
[EventDate "2024.09.27"]
[EventType "team-tourn"]
[EventCountry "GER"]
[SourceTitle "playchess.com"]
[Source "ChessBase"]
[SourceQuality "1"]
[WhiteTeam "Bad Mergentheim"]
[BlackTeam "Deizisau"]
[TimeControl "40/5400+30:1800+30"]

{[%evp 30,68,0,-14,0,0,0,0,10,10,7,-20,-18,-13,-11,-23,-20,-12,0,-30,-30,-27,-31,-20,-31,-29,0,0,0,0,0,0,-5,-7,0,-1,0,0,0,-3,0]} 1. e4 {[%emt 0:00:05]} e5 {[%emt 0:00:16]} 2. Nf3 {[%emt 0:00:15]} Nc6 {[%emt 0:00:11]} 3. Bb5 {[%emt 0:00:24]} a6 {[%emt 0:00:44]} 4. Ba4 {[%emt 0:00:11]} Nf6 {[%emt 0:00:09]} 5. O-O {[%emt 0:00:20]} Be7 {[%emt 0:00:18]} 6. Re1 {[%emt 0:00:41]} b5 {[%emt 0:00:26]} 7. Bb3 {[%emt 0:00:06]} d6 {[%emt 0:02:24]} 8. c3 {[%emt 0:00:53]} O-O {[%emt 0:00:26]} 9. d4 {[%emt 0:00:26][%cal Bd2d4,Bd4d5][%mdl 32]} Bg4 {[%emt 0:00:48]} 10. d5 {[%emt 0:00:24]} Na5 {[%emt 0:00:37]} 11. Bc2 {[%emt 0:00:07]} c6 {[%emt 0:00:22]} 12. h3 {[%emt 0:00:32]} Bc8 {[%emt 0:04:46]} 13. dxc6 {[%emt 0:01:20]} Qc7 {[%emt 0:00:24]} 14. Nbd2 {[%emt 0:00:26]} Qxc6 {[%emt 0:02:31]} 15. Nf1 {[%emt 0:00:45]} Be6 {[%emt 0:08:36]} 16. Ng3 {[%emt 0:01:36]} Nc4 {[%emt 0:05:10]} 17. b3 {[%emt 0:07:57]} Nb6 {[%emt 0:00:18]} 18. Bd2 {[%emt 0:00:06]} a5 {[%emt 0:08:46][%cal Ba6a5,Ba5a4][%mdl 32]} 19. Qe2 {[%emt 0:07:46]} a4 {[%emt 0:06:58]} 20. Ng5 {[%emt 0:04:31] Nxe6 is the strong threat.} Bd7 {[%emt 0:01:09]} 21. Bd3 {[%emt 0:01:48]} g6 {[%emt 0:06:06]} 22. Qf1 {[%emt 0:25:33]} Ne8 {[%emt 0:06:14]} 23. f4 {[%emt 0:04:22]} Ng7 {[%emt 0:07:15]} 24. Kh1 {[%emt 0:02:08]} Ne6 {[%emt 0:05:33]} 25. Nf3 {[%emt 0:08:04]} Nxf4 {[%emt 0:06:20]} 26. Bxf4 {[%emt 0:02:38]} exf4 {[%emt 0:00:07]} 27. Ne2 {[%emt 0:00:06]} Qc7 {[%emt 0:06:15]} 28. Rac1 {[%emt 0:13:22] The position is equal.} axb3 {[%emt 0:00:18]} 29. axb3 {[%emt 0:00:01]} Ra3 {[%emt 0:08:55]} 30. Ned4 {[%emt 0:02:59]} Qc5 {[%emt 0:01:40]} 31. e5 {[%emt 0:02:44] Against Bf6} Nd5 {[%emt 0:01:30] [#] Hoping for ...Ne3.} 32. Bxb5 {[%emt 0:04:20]} Bxb5 {[%emt 0:04:57]} 33. Qxb5 {[%emt 0:03:17]} Ne3 {[%emt 0:01:01]} (33... Nxc3 $2 {perishes.} 34. Qd3 (34. exd6 Qxb5 35. Nxb5 Nxb5 $11) 34... Rc8 35. Nb5 Nxb5 (35... Rxb3 36. exd6 Rd8 37. dxe7 $18) 36. Rxc5 Rxc5 37. e6 $16) 34. b4 {[%emt 0:03:33]} Qc8 {[%emt 0:01:34] An even fight not without its subleties.   Weighted Error Value: White=0.06 (flawless) /Black=0.05 (flawless) .  Inaccurate:     	White=2     	Black=1      OK:         	White=8     	Black=8      Best:        	White=1     	---} 1/2-1/2

[Event "German Bundesliga 2024-25"]
[Site "Germany"]
[Date "2024.12.01"]
[Round "4.5"]
[White "Kamsky, Gata"]
[Black "Ikonnikov, Vyacheslav"]
[Result "1-0"]
[Annotator "TA"]
[ECO "A45"]
[WhiteElo "2609"]
[BlackElo "2465"]
[PlyCount "95"]
[EventDate "2024.09.27"]
[EventType "team-tourn"]
[EventCountry "GER"]
[SourceTitle "playchess.com"]
[Source "ChessBase"]
[SourceQuality "1"]
[WhiteTeam "Deizisau"]
[BlackTeam "Bad Mergentheim"]
[TimeControl "40/5400+30:1800+30"]

{[%evp 28,95,48,50,76,65,75,74,56,63,104,92,105,47,82,86,114,103,107,110,94,100,146,105,106,97,194,170,187,175,199,151,159,183,175,171,272,272,263,149,258,185,275,275,451,368,363,341,556,562,565,551,560,559,547,534,667,319,300,298,594,293,528,393,1580,1932,1740,1373,6231,6170]} 1. d4 {[%emt 0:00:35]} Nf6 {[%emt 0:01:12]} 2. Bf4 {[%emt 0:00:54]} e6 {[%emt 0:04:38]} 3. e3 {[%emt 0:00:11]} a6 {[%emt 0:03:57]} 4. Nd2 {[%emt 0:04:52]} c5 {[%emt 0:11:48]} 5. c3 {[%emt 0:02:59]} Nc6 {[%emt 0:00:28]} 6. Ngf3 {[%emt 0:00:32] A45: Trompowsky Attack.} cxd4 {[%emt 0:00:33]} 7. exd4 {[%emt 0:00:36]} Be7 {[%emt 0:00:36]} 8. h3 {[%emt 0:00:35]} d6 {[%emt 0:02:08]} 9. a4 {[%emt 0:01:19]} Rb8 $146 {[%emt 0:17:06]} ({Predecessor:} 9... O-O 10. Be2 b6 11. O-O Bb7 12. Re1 Rc8 13. Nc4 b5 14. axb5 axb5 15. Ne3 Qb6 {1-0 Laustsen,K (1810)-Awiszus,T (1378) Nuremberg Zabo op 16th 2014 (1)}) 10. Be2 {[%emt 0:02:40]} O-O {[%emt 0:00:28]} 11. O-O {[%emt 0:00:07]} b5 {[%emt 0:01:09]} 12. axb5 {[%emt 0:00:06]} axb5 {[%emt 0:00:04]} 13. Re1 {[%emt 0:00:20]} Nd5 {[%emt 0:05:55]} 14. Bh2 {[%emt 0:02:33]} Re8 {[%emt 0:03:11]} 15. Bd3 {[%emt 0:00:30]} Nf6 {[%emt 0:12:25]} 16. Ne4 {[%emt 0:04:13]} g6 {[%emt 0:06:23]} 17. Nxf6+ {[%emt 0:05:01]} Bxf6 {[%emt 0:00:06]} 18. d5 {[%emt 0:00:02]} Ne7 {[%emt 0:06:44]} 19. dxe6 {[%emt 0:00:20]} Bxe6 {[%emt 0:00:05]} 20. Qd2 {[%emt 0:08:21]} ({White should play} 20. Be4 $16) 20... Rb6 {[%emt 0:11:37]} 21. Nd4 {[%emt 0:12:20]} Bd7 {[%emt 0:00:22]} 22. Nc2 {[%emt 0:03:13]} Be6 {[%emt 0:04:12]} 23. Nb4 {[%emt 0:04:37]} Qc8 {[%emt 0:01:32]} 24. Bf4 {[%emt 0:05:13]} Rd8 {[%emt 0:01:38]} (24... d5 $142) 25. Bg5 {[%emt 0:02:10]} Bxg5 {[%emt 0:01:44]} 26. Qxg5 {[%emt 0:00:06]} Qd7 {[%emt 0:00:40] [#]} (26... Re8 $16) 27. h4 $1 $18 {[%emt 0:01:06]} Rdb8 {[%emt 0:01:30]} 28. h5 {[%emt 0:00:20]} Qd8 {[%emt 0:00:05]} 29. Qg3 {[%emt 0:10:31]} (29. hxg6 $18 Nxg6 30. Qh6) 29... d5 $16 {[%emt 0:00:36]} 30. Ra7 {[%emt 0:01:12]} R8b7 {[%emt 0:01:23]} 31. Rea1 {[%emt 0:01:08]} Nc8 {[%emt 0:00:42]} (31... Bf5 $142 32. Bf1 Rb8) 32. Rxb7 $18 {[%emt 0:00:58]} Rxb7 {[%emt 0:00:02]} 33. hxg6 {[%emt 0:00:47]} (33. Ra8 $18) 33... fxg6 {[%emt 0:00:09]} (33... hxg6 $16 34. Bxg6 Qd6) 34. Ra6 {[%emt 0:01:05]} (34. Bxg6 Rg7 35. Bxh7+ (35. Nc6 Qf6 $17) 35... Kxh7 $11) 34... Bf7 {[%emt 0:00:34]} (34... Rb6 {was called for.} 35. Bxb5 Qd6 36. Qxd6 Rxd6) 35. Ra8 $18 {[%emt 0:00:11]} Qd7 $2 {[%emt 0:01:27]} (35... Be6 {was worth a try.} 36. Be2 (36. Bxg6 Rg7 $11) 36... Qf8) 36. Na6 {[%emt 0:02:34]} Ra7 {[%emt 0:00:37]} 37. Bxb5 {[%emt 0:01:10]} Qe6 $2 {[%emt 0:00:41]} (37... Qd8) 38. Rxa7 $18 {[%emt 0:00:24]} Nxa7 {[%emt 0:00:08]} 39. Qb8+ {[%emt 0:00:16]} Nc8 {[%emt 0:00:21]} 40. Nc5 {[%emt 0:00:59]} Qe1+ {[%emt 0:00:21]} 41. Kh2 {[%emt 0:32:48]} Be6 {[%emt 0:05:13]} 42. Qf4 {[%emt 0:00:00]} (42. Bd7 $142 Bxd7 43. Nxd7 Qxf2 44. Qxc8+ Kg7 45. Qe8 Qf4+ 46. Kh3 Qh6+ 47. Kg3 Qg5+ 48. Kf3 Qf5+ 49. Ke3) 42... Bf5 $18 {[%emt 0:04:03]} 43. Qd4 {[%emt 0:00:00]} Ne7 $2 {[%emt 0:00:49]} (43... Qe7 44. Qxd5+ Kh8 45. Qd4+ Qg7) 44. b4 {[%emt 0:00:00]} (44. Qf6 $142 {Hoping for Nd7.} Nc8 45. Bc6) 44... h6 $2 {[%emt 0:11:44]} (44... Qc1 45. Qe5 Qh6+ 46. Kg1 Qg7) 45. Nd7 {[%emt 0:00:00]} Bxd7 $2 {[%emt 0:07:02]} (45... Qe6 46. g3 g5) 46. Bxd7 $18 {[%emt 0:00:00]} Kf7 {[%emt 0:01:33]} 47. b5 {[%emt 0:00:00]} Qe2 {[%emt 0:00:12]} 48. b6 {[%emt 0:00:00]} 1-0

[Event "German Bundesliga 2024-25"]
[Site "Germany"]
[Date "2024.12.01"]
[Round "4.5"]
[White "Van Wely, Loek"]
[Black "Papp, Gabor"]
[Result "1-0"]
[Annotator "TA"]
[ECO "D35"]
[WhiteElo "2608"]
[BlackElo "2511"]
[PlyCount "89"]
[EventDate "2024.09.27"]
[EventType "team-tourn"]
[EventCountry "GER"]
[SourceTitle "playchess.com"]
[Source "ChessBase"]
[SourceQuality "1"]
[WhiteTeam "SG Solingen"]
[BlackTeam "Hamburg"]
[TimeControl "40/5400+30:1800+30"]

{[%evp 12,88,15,12,36,28,18,8,18,19,21,14,38,22,9,16,31,0,8,0,10,-13,-21,-32,16,-48,-22,-43,-26,-30,-23,-23,-23,-40,-36,-34,-24,-32,-34,-36,0,-10,47,21,31,51,61,50,47,25,150,135,430,435,595,581,1057,1002,1025,729,708,693,785,741,748,704,1006,977,1004,568,1187,1181,2138,1910,29986,29975,29975,29973,29999]} 1. c4 {[%emt 0:00:06]} e6 {[%emt 0:01:01]} 2. Nc3 {[%emt 0:01:20]} d5 {[%emt 0:00:08]} 3. d4 {[%emt 0:00:08]} Nf6 {[%emt 0:00:05]} 4. cxd5 {[%emt 0:00:12]} exd5 {[%emt 0:00:08]} 5. Bg5 {[%emt 0:00:23]} Be7 {[%emt 0:00:53]} 6. e3 {[%emt 0:00:41]} h6 {[%emt 0:00:32]} 7. Bh4 {[%emt 0:00:37]} Bg4 {[%emt 0:00:26]} 8. Qb3 {[%emt 0:03:27][%cal Oh4f6] Bxf6! is the strong threat.} Nbd7 {[%emt 0:04:56]} 9. Be2 {[%emt 0:06:18]} (9. Qxb7 Rb8 10. Qxa7 Rxb2 $15) 9... Be6 {[%emt 0:10:09][%cal Bg4e6,Be6f5,Bf5h7][%mdl 32] The position is equal.} 10. Nf3 {[%emt 0:03:11]} O-O {[%emt 0:01:43]} 11. O-O {[%emt 0:03:03]} Nb6 {[%emt 0:13:16]} 12. a4 {[%emt 0:06:16] Threatening a5.} a5 {[%emt 0:01:31]} 13. Ne5 {[%emt 0:17:19]} Bf5 {[%emt 0:08:04]} 14. Rfc1 {[%emt 0:06:35]} c6 {[%emt 0:03:51]} 15. h3 {[%emt 0:04:45]} Ra7 {[%emt 0:03:18]} 16. g4 {[%emt 0:05:44]} Bh7 {[%emt 0:00:33]} 17. f4 {[%emt 0:02:18]} Nc8 {[%emt 0:05:52]} (17... Re8 $15 {might be stronger.}) 18. Qd1 {[%emt 0:05:31]} (18. f5 $11) 18... Nd6 {[%emt 0:05:47]} 19. Bxf6 {[%emt 0:00:34]} Bxf6 {[%emt 0:00:30]} 20. Bd3 {[%emt 0:00:19]} Bxd3 {[%emt 0:02:17]} 21. Qxd3 {[%emt 0:00:34]} Ra6 {[%emt 0:09:13]} 22. b3 {[%emt 0:02:52]} Re8 {[%emt 0:12:02]} 23. Rc2 {[%emt 0:01:57]} Be7 {[%emt 0:01:42]} 24. Rg2 {[%emt 0:01:53]} f6 {[%emt 0:00:53]} 25. Nf3 {[%emt 0:03:04][%cal Be5f3,Bf3d4,Bd4f5,Bf5g7][%mdl 32]} Nf7 {[%emt 0:01:18]} 26. Ne2 {[%emt 0:05:24][%cal Bc3e2,Be2g3,Bg3h5][%mdl 32]} c5 {[%emt 0:02:14]} (26... Qd7 $11) 27. Ng3 {[%emt 0:01:28]} cxd4 {[%emt 0:01:58]} 28. Nxd4 {[%emt 0:04:08]} Bc5 {[%emt 0:00:22]} 29. Ndf5 {[%emt 0:03:35] Threatens to win with Nh5. Excellent horsemanship.} Rae6 {[%emt 0:01:11][%cal Re6e3] [#] Hoping for ...Rxe3.} 30. Kh1 {[%emt 0:01:02]} (30. Kh2 $5) 30... Bxe3 {[%emt 0:01:16]} (30... Nd6 $11 {keeps the balance.}) 31. Nh5 $16 {[%emt 0:01:06] White is much more active.} Ba7 $2 {[%emt 0:02:24][%mdl 8192] This move loses the game for Black.} (31... Bb6 $16 {keeps fighting.} 32. Kh2 (32. Nfxg7 Re3 $18) (32. Nhxg7 Re3 $16) 32... Bc7) 32. Nfxg7 $18 {[%emt 0:01:21]} (32. Nhxg7 Re1+ 33. Rxe1 Rxe1+ 34. Kh2 d4 $18) 32... Re1+ {[%emt 0:02:22]} 33. Kh2 {[%emt 0:04:48]} (33. Rxe1 Rxe1+ 34. Kh2 Re4 $18) 33... Bg1+ {[%emt 0:04:25]} 34. Rxg1 {[%emt 0:00:26]} R8e2+ {[%emt 0:00:03]} 35. Kh1 {[%emt 0:00:38]} d4 {[%emt 0:00:35]} 36. Qf3 {[%emt 0:02:19]} (36. Raxe1 $2 Qd5+) 36... Rxg1+ {[%emt 0:00:29]} 37. Rxg1 {[%emt 0:00:43]} d3 {[%emt 0:00:12]} 38. Rd1 {[%emt 0:01:27]} (38. Qxb7 d2 39. Nf5 Kf8 (39... d1=B 40. Nxh6+ Kh8 41. Nxf7+ Kg8 42. Nh6+ Kh8 43. Qg7#) 40. Nxh6 Re7 41. Nxf7 Qd3 $19) 38... Qd4 {[%emt 0:00:24]} 39. Nf5 {[%emt 0:00:40]} (39. Qxb7 $2 d2 40. Qa8+ Kh7 $19) (39. Qxd3 Re1+ 40. Rxe1 Qxd3 41. Re8+ Kh7 $19) 39... Qb2 {[%emt 0:00:05]} 40. g5 {[%emt 0:01:39][%cal Bg4g5,Bg5g6,Bg6g7][%mdl 32]} (40. Rxd3 $2 Re1+) 40... Qc2 {[%emt 0:01:48]} 41. Nxf6+ {[%emt 0:02:36]} Kh8 {[%emt 0:00:09]} 42. Rf1 {[%emt 0:01:01] [#] White threatens g6 and mate.} (42. Qxd3 $2 Rh2+ 43. Kg1 Qg2#) 42... Rh2+ {[%emt 0:01:57]} 43. Kg1 {[%emt 0:01:52] White mates.} d2 {[%emt 0:00:03]} 44. g6 {[%emt 0:00:57][%csl Gf5][%cal Rg6g7]} (44. Kxh2 d1=Q+ (44... d1=N+ $2 {too greedy.} 45. Kg3 $18) 45. Rf2 Qxf3 $11 (45... Qxb3 46. Qxb3 Qxb3 47. g6)) 44... d1=Q {[%emt 0:00:25]} 45. g7# {[%emt 0:00:08] Weighted Error Value: White=0.31/Black=0.38.  Loses game:     	---       	Black=1      Mistake:       	White=1     	Black=3      Inaccurate:     	White=1     	Black=5      OK:         	White=6     	Black=5      Best:        	White=4     	Black=2} 1-0

[Event "German Bundesliga 2024-25"]
[Site "Germany"]
[Date "2024.12.01"]
[Round "4.5"]
[White "Alonso Rosell, Alvar"]
[Black "Markus, Robert"]
[Result "1/2-1/2"]
[Annotator "TA"]
[ECO "A45"]
[WhiteElo "2532"]
[BlackElo "2592"]
[PlyCount "52"]
[EventDate "2024.09.27"]
[EventType "team-tourn"]
[EventCountry "GER"]
[SourceTitle "playchess.com"]
[Source "ChessBase"]
[SourceQuality "1"]
[WhiteTeam "Bayern Muenchen"]
[BlackTeam "Kirchweyhe"]
[TimeControl "40/5400+30:1800+30"]

{[%evp 11,52,25,23,23,24,24,31,22,43,31,43,22,26,23,34,27,37,25,32,29,35,25,28,6,12,22,22,10,20,0,0,0,0,0,0,0,0,0,0,0,0,0,0]} 1. d4 {[%emt 0:00:04]} Nf6 {[%emt 0:00:12]} 2. Bg5 {[%emt 0:00:05]} c5 {[%emt 0:00:42]} 3. Bxf6 {[%emt 0:00:42]} gxf6 {[%emt 0:00:08]} 4. d5 {[%emt 0:00:05]} Qb6 {[%emt 0:00:34]} 5. Qc1 {[%emt 0:00:05]} f5 {[%emt 0:00:32]} 6. c4 {[%emt 0:00:06]} Bg7 {[%emt 0:00:17]} 7. Nc3 {[%emt 0:00:06]} d6 {[%emt 0:02:34]} 8. e3 {[%emt 0:02:19]} Nd7 {[%emt 0:00:08]} 9. Qc2 {[%emt 0:00:33] White is slightly better.} Nf6 {[%emt 0:03:02]} 10. Bd3 {[%emt 0:00:26][%cal Og1e2]} e5 {[%emt 0:00:11][%cal Be7e5,Be5e4][%mdl 32]} 11. Rb1 {[%emt 0:00:33]} (11. Bxf5 $2 {perishes.} Bxf5 12. e4 (12. Qxf5 $2 {loses.} Qxb2 13. Nd1 Qxa1 $19) 12... Bd7 $19) 11... e4 {[%emt 0:00:44]} 12. Be2 {[%emt 0:00:03]} Qc7 {[%emt 0:05:30]} 13. Nh3 {[%emt 0:04:08]} Qe7 {[%emt 0:00:08]} 14. Nf4 {[%emt 0:01:10]} Bd7 {[%emt 0:00:08]} 15. O-O {[%emt 0:01:47]} O-O {[%emt 0:01:01]} 16. b4 {[%emt 0:05:41]} b6 {[%emt 0:08:29]} 17. bxc5 {[%emt 0:05:55]} bxc5 {[%emt 0:01:27] The position is equal.} 18. Rb7 {[%emt 0:10:24]} Rfb8 $1 {[%emt 0:05:08]} 19. Rfb1 {[%emt 0:01:35]} Qd8 {[%emt 0:00:56]} 20. Qb3 {[%emt 0:06:39]} Rxb7 {[%emt 0:03:47]} 21. Qxb7 {[%emt 0:03:32]} Ne8 {[%emt 0:00:13]} 22. Nb5 {[%emt 0:19:16] A dynamic duo of knights.} Rb8 $1 {[%emt 0:08:10]} 23. Qxa7 {[%emt 0:01:04]} Ra8 {[%emt 0:00:08]} 24. Qb7 {[%emt 0:00:02]} Rb8 {[%emt 0:00:30]} 25. Qa7 {[%emt 0:00:07]} Ra8 {[%emt 0:00:05]} 26. Qb7 {[%emt 0:00:04] And now Na7 would win.} Rb8 {[%emt 0:00:05] Weighted Error Value: White=0.05 (flawless) /Black=0.02 (flawless) .  OK:         	White=11    	Black=9      Best:        	---       	Black=3      Strong:       	---       	Black=2} 1/2-1/2